bitfinex-derivatives/quotes_SOLF0:USTF0_20250819
["timestamp","ask_amount","ask_price","bid_price","bid_amount"]
[1755564769486,2.86,184.51,184.41,3.04]
[1755564769687,138.96,184.5,184.41,3.04]
[1755564770092,141.82,184.51,184.41,3.04]
[1755564770398,141.82,184.51,184.44,3.07731265]
[1755564770593,141.82,184.51,184.44,8.49641265]
[1755564771188,141.82,184.51,184.44,3.07731265]
[1755564773593,141.82,184.51,184.44,8.49631265]
[1755564773993,364.24,184.52,184.45,2.95]
[1755564774198,503.16,184.52,184.45,2.95]
[1755564775096,138.92,184.52,184.46,7.17792203]
[1755564775300,3.03,184.6,184.5,2.95]
[1755564775491,138.92,184.57,184.5,2.95]
[1755564775903,138.92,184.57,184.51,5.4169]
[1755564776104,138.92,184.57,184.52,0.03678347]
[1755564776299,3.03,184.56,184.52,0.03678347]
[1755564777297,138.92,184.57,184.52,2.98678347]
[1755564777498,138.92,184.57,184.53,2.95]
[1755564778501,141.95,184.57,184.52,0.03678347]
[1755564779103,141.95,184.57,184.52,2.98678347]
[1755564780208,138.92,184.57,184.52,0.03678347]
[1755564780404,3.03,184.55,184.52,0.03678347]
[1755564780606,141.95,184.57,184.52,0.03678347]
[1755564780809,141.95,184.57,184.53,2.95]
[1755564781003,141.95,184.57,184.52,0.03678347]
[1755564781004,3.03,184.56,184.52,0.03678347]
[1755564781203,138.92,184.57,184.53,2.95]
[1755564781805,138.82,184.58,184.53,2.95]
[1755564782210,138.82,184.58,184.54,2.95]
[1755564782506,138.82,184.58,184.52,0.03678347]
[1755564782507,141.85,184.58,184.52,0.03678347]
[1755564783309,138.82,184.58,184.56,2.95]
[1755564783612,138.82,184.58,184.52,0.03678347]
[1755564783613,138.82,184.58,184.52,2.98678347]
[1755564784207,141.85,184.58,184.52,2.98678347]
[1755564784407,141.85,184.58,184.52,0.03678347]
[1755564785708,3.03,184.58,184.52,0.03678347]
[1755564786013,138.8,184.58,184.52,0.03678347]
[1755564787008,138.8,184.58,184.55,5.4159]
[1755564787215,138.78,184.61,184.53,2.95]
[1755564788009,138.78,184.61,184.55,5.4159]
[1755564788315,138.78,184.61,184.53,2.95]
[1755564788713,138.78,184.61,184.55,0.03575585]
[1755564790713,3.03,184.6,184.55,0.03575585]
[1755564790915,3.03,184.58,184.55,0.03575585]
[1755564791313,3.03,184.57,184.55,0.03575585]
[1755564792118,141.77,184.56,184.55,0.03575585]
[1755564792810,138.74,184.56,184.55,0.03575585]
[1755564793010,138.74,184.56,184.55,2.98575585]
[1755564793616,138.74,184.59,184.55,2.98575585]
[1755564793913,138.74,184.59,184.55,8.40165585]
[1755564794212,138.74,184.59,184.55,5.45165585]
[1755564794420,138.74,184.59,184.57,2.95]
[1755564795305,138.74,184.59,184.57,8.3654]
[1755564795510,138.74,184.59,184.57,2.95]
[1755564796405,138.74,184.59,184.55,5.45165585]
[1755564796605,138.74,184.59,184.55,8.40165585]
[1755564797015,138.74,184.59,184.56,8.3657]
[1755564797615,367.33,184.63,184.56,8.3657]
[1755564797816,138.7,184.62,184.56,8.3657]
[1755564799021,141.73,184.61,184.56,2.95]
[1755564799219,3.03,184.6,184.55,0.03575585]
[1755564799417,138.7,184.61,184.55,0.03575585]
[1755564799611,3.03,184.59,184.55,0.03575585]
[1755564799816,138.68,184.59,184.55,0.03575585]
[1755564800122,138.68,184.59,184.57,2.95]
[1755564800717,138.68,184.59,184.55,2.98575585]
[1755564800924,138.68,184.59,184.56,2.95]
[1755564801225,3.03,184.61,184.56,2.95]
[1755564801427,138.68,184.6,184.57,2.95]
[1755564802214,138.68,184.6,184.57,2.97]
[1755564802415,138.68,184.6,184.58,2.97]
[1755564802815,138.68,184.6,184.55,0.03575585]
[1755564803016,138.68,184.6,184.59,2.97]
[1755564803215,138.66,184.63,184.59,2.97]
[1755564804122,138.66,184.63,184.6,2.97]
[1755564804425,138.66,184.63,184.59,0.03512748]
[1755564804624,3.14,184.61,184.59,0.03512748]
[1755564804922,3.14,184.62,184.59,0.03512748]
[1755564805126,138.66,184.63,184.59,0.03512748]
[1755564805816,3.14,184.62,184.59,0.03512748]
[1755564806320,3.14,184.6,184.59,0.03512748]
[1755564806716,138.66,184.63,184.59,0.03512748]
[1755564806920,3.14,184.62,184.59,0.03512748]
[1755564807420,3.14,184.61,184.59,0.03512748]
[1755564807629,3.14,184.6,184.59,0.03512748]
[1755564808126,138.66,184.63,184.59,0.03512748]
[1755564808322,3.14,184.62,184.59,0.03512748]
[1755564808530,3.14,184.61,184.59,0.03512748]
[1755564810123,138.66,184.63,184.59,0.03512748]
[1755564810327,141.8,184.63,184.59,0.03512748]
[1755564811228,138.66,184.63,184.59,3.00512748]
[1755564813225,141.8,184.63,184.59,3.00512748]
[1755564814234,138.66,184.63,184.59,0.03512748]
[1755564814431,3.14,184.6,184.59,0.03512748]
[1755564820446,5.83029414,184.6,184.59,0.03512748]
[1755564820647,2.69029414,184.6,184.59,0.03512748]
[1755564820843,141.8,184.63,184.59,0.03512748]
[1755564821042,138.66,184.63,184.6,2.97]
[1755564821543,138.66,184.63,184.59,0.03512748]
[1755564821844,3.14,184.67,184.59,7.37623476]
[1755564822037,2.6896655,184.66,184.59,7.37623476]
[1755564822240,141.68,184.67,184.59,7.37623476]
[1755564822548,2.68955273,184.66,184.59,7.37623476]
[1755564822851,141.68,184.67,184.59,7.37623476]
[1755564823546,2.68930498,184.66,184.59,7.37623476]
[1755564823742,141.68,184.67,184.59,7.37623476]
[1755564823942,2.68933307,184.66,184.59,7.37623476]
[1755564824248,141.68,184.67,184.59,7.37623476]
[1755564825350,141.68,184.67,184.6,5.4143]
[1755564826351,141.68,184.67,184.61,5.4142]
[1755564826652,141.68,184.67,184.59,7.37623476]
[1755564826955,141.68,184.67,184.6,5.4142]
[1755564827262,10.10405107,184.71,184.62,4.37110728]
[1755564827458,2.68570097,184.7,184.63,2.97]
[1755564827648,142.58269345,184.71,184.63,2.97]
[1755564827954,2.68544926,184.7,184.65,0.03581994]
[1755564828155,3.14,184.69,184.65,0.03581994]
[1755564828744,3.14,184.69,184.65,3.00581994]
[1755564828948,138.5,184.71,184.66,2.97]
[1755564829152,141.64,184.71,184.66,2.97]
[1755564829352,3.14,184.7,184.66,2.97]
[1755564829556,6.02135762,184.75,184.67,2.97]
[1755564829745,3.14,184.78,184.71,4.37110728]
[1755564829951,3.14,184.76,184.69,2.97]
[1755564830151,3.14,184.76,184.68,4.37110728]
[1755564830152,2.68315075,184.75,184.68,4.37110728]
[1755564830352,144.48135762,184.79,184.73,0.039031]
[1755564830659,3.14,184.74,184.73,0.039031]
[1755564831356,5.82060696,184.74,184.63,4.37110728]
[1755564831558,138.46,184.73,184.64,2.97]
[1755564832060,138.46,184.73,184.66,4.37110728]
[1755564832251,138.46,184.73,184.67,2.94]
[1755564832655,0.03870239,184.71,184.67,2.94]
[1755564832962,0.03870239,184.71,184.7,2.94]
[1755564836354,141.39,184.78,184.7,2.94]
[1755564837265,141.39,184.78,184.7,8.3514]
[1755564837458,141.39,184.78,184.7,2.94]
[1755564838157,141.39,184.78,184.71,5.4113]
[1755564838764,141.39,184.78,184.7,8.3515]
[1755564839662,141.39,184.78,184.7,2.94]
[1755564839866,2.99,184.77,184.7,2.94]
[1755564840659,2.99,184.77,184.69,0.03935903]
[1755564841257,2.99,184.75,184.69,0.03935903]
[1755564844364,2.99,184.73,184.69,0.03935903]
[1755564844565,2.99,184.75,184.69,0.03935903]
[1755564844764,2.99,184.73,184.69,0.03935903]
[1755564845670,2.99,184.75,184.69,0.03935903]
[1755564845872,2.99,184.72,184.69,0.03935903]
[1755564846067,2.99,184.7,184.69,0.03935903]
[1755564847068,138.3,184.71,184.69,0.03935903]
[1755564847372,2.99,184.7,184.69,0.03935903]
[1755564847574,2.99,184.7,184.61,2.94]
[1755564848971,3.02414258,184.67,184.61,2.94]
[1755564850475,3.02414258,184.67,184.58,5.4149]
[1755564850973,3.02414258,184.67,184.59,5.4148]
[1755564852273,3.02414258,184.67,184.58,5.4151]
[1755564852573,3.02414258,184.67,184.57,7.31110728]
[1755564852770,3.02414258,184.67,184.59,5.4148]
[1755564853472,3.02414258,184.67,184.57,7.31110728]
[1755564853473,3.02414258,184.67,184.57,2.94]
[1755564853981,3.02414258,184.67,184.57,8.3553]
[1755564854268,3.02414258,184.67,184.6,0.0369231]
[1755564854478,3.02414258,184.67,184.61,2.94]
[1755564854668,0.03414258,184.67,184.61,2.94]
[1755564854972,0.03414258,184.67,184.6,4.40803038]
[1755564855173,0.03414258,184.67,184.61,2.94]
[1755564855573,0.03414258,184.67,184.61,8.3542]
[1755564855773,0.03414258,184.67,184.61,2.94]
[1755564857973,0.03414258,184.67,184.61,7.31110728]
[1755564858171,0.03414258,184.67,184.63,2.94]
[1755564858475,0.03414258,184.67,184.66,2.94]
[1755564859784,0.03414258,184.67,184.64,7.31110728]
[1755564860080,0.03414258,184.67,184.66,2.94]
[1755564860876,0.03414258,184.67,184.64,4.37110728]
[1755564861080,0.03414258,184.67,184.61,4.37110728]
[1755564861685,2.99,184.69,184.61,4.37110728]
[1755564861974,2.99,184.69,184.62,5.414]
[1755564862180,0.03483689,184.67,184.64,2.99]
[1755564862384,0.03483689,184.67,184.65,2.99]
[1755564864579,0.03483689,184.67,184.61,4.37110728]
[1755564864779,2.98,184.66,184.58,7.36110728]
[1755564864975,0.03483689,184.67,184.59,2.99]
[1755564865178,141.2,184.69,184.61,5.4142]
[1755564865373,0.03617248,184.65,184.61,5.4142]
[1755564865687,0.03617248,184.65,184.62,2.99]
[1755564865984,0.03617248,184.65,184.58,4.37110728]
[1755564866179,3.01617248,184.65,184.58,7.36110728]
[1755564867388,3.01617248,184.65,184.59,5.4148]
[1755564867580,3.01617248,184.65,184.58,7.36110728]
[1755564869186,3.01617248,184.65,184.58,12.77620728]
[1755564869584,3.01617248,184.65,184.58,7.36110728]
[1755564870487,3.01617248,184.65,184.5,2.99]
[1755564870691,3.01617248,184.65,184.52,2.99]
[1755564870882,2.68199645,184.64,184.5,2.99]
[1755564871192,0.03683749,184.6,184.5,2.99]
[1755564871489,0.03683749,184.6,184.51,5.417]
[1755564871887,0.03683749,184.6,184.5,2.99]
[1755564872088,0.03683749,184.6,184.52,5.4169]
[1755564872981,2.98,184.59,184.5,2.99]
[1755564873390,2.98,184.59,184.52,5.4169]
[1755564875290,0.03683749,184.6,184.54,4.37110728]
[1755564875495,0.03683749,184.6,184.59,2.99]
[1755564875787,2.98,184.65,184.57,4.37110728]
[1755564875987,0.03999276,184.61,184.57,4.37110728]
[1755564876195,0.03999276,184.61,184.55,2.99]
[1755564877091,0.03999276,184.61,184.6,2.99]
[1755564877484,2.98,184.66,184.6,2.99]
[1755564877685,0.03751509,184.62,184.57,4.37110728]
[1755564877888,0.03751509,184.62,184.58,2.99]
[1755564878191,0.03751509,184.62,184.59,2.99]
[1755564879585,0.03751509,184.62,184.6,2.99]
[1755564880194,0.03751509,184.62,184.6,4.37110728]
[1755564880394,0.03751509,184.62,184.61,2.99]
[1755564881495,0.03751509,184.62,184.6,7.36110728]
[1755564882386,0.03751509,184.62,184.61,2.99]
[1755564882590,138.14,184.67,184.61,2.99]
[1755564883291,141.12,184.67,184.61,2.99]
[1755564883789,2.98,184.66,184.59,0.03730198]
[1755564884697,2.98,184.63,184.59,0.03730198]
[1755564884896,2.98,184.61,184.59,0.03730198]
[1755564886193,138.14,184.67,184.59,0.03730198]
[1755564886395,2.98,184.6,184.59,0.03730198]
[1755564886896,141.06,184.6,184.59,0.03730198]
[1755564887088,2.98,184.59,184.49,2.99]
[1755564887488,2.98,184.59,184.5,4.37110728]
[1755564887701,2.98,184.59,184.51,2.99]
[1755564888200,0.04108002,184.57,184.51,2.99]
[1755564889194,0.04108002,184.57,184.53,5.4166]
[1755564889399,0.04108002,184.57,184.54,2.99]
[1755564889893,0.04108002,184.57,184.55,2.99]
[1755564890798,0.04108002,184.57,184.53,8.4066]
[1755564891899,0.04108002,184.57,184.53,5.4166]
[1755564892207,0.04108002,184.57,184.55,2.99]
[1755564892594,0.04108002,184.57,184.54,5.4163]
[1755564893301,0.04108002,184.57,184.56,3.13]
[1755564893701,138.06,184.61,184.56,3.13]
[1755564893899,2.89,184.6,184.56,8.5456]
[1755564894103,0.03867538,184.58,184.56,8.5456]
[1755564896305,2.89,184.64,184.57,3.13]
[1755564896806,2.89,184.64,184.56,9.78680728]
[1755564897004,2.89,184.64,184.56,4.37110728]
[1755564898104,2.89,184.64,184.56,9.78680728]
[1755564898498,2.89,184.64,184.56,4.37110728]
[1755564898897,2.89,184.64,184.55,0.03676998]
[1755564900404,2.89,184.62,184.55,0.03676998]
[1755564900604,2.89,184.6,184.55,0.03676998]
[1755564900798,2.89,184.58,184.55,0.03676998]
[1755564901101,2.89,184.58,184.47,3.13]
[1755564901303,2.89,184.56,184.47,3.13]
[1755564901704,2.89,184.56,184.48,3.13]
[1755564902009,137.98,184.58,184.51,3.13]
[1755564902508,0.04049611,184.56,184.53,3.13]
[1755564902896,2.93049611,184.56,184.5,4.37110728]
[1755564903304,0.04049611,184.56,184.5,4.37110728]
[1755564903503,0.04049611,184.56,184.52,5.417]
[1755564903810,0.04049611,184.56,184.54,3.13]
[1755564904210,0.04049611,184.56,184.55,3.13]
[1755564904409,2.89,184.64,184.55,3.13]
[1755564904603,2.89,184.64,184.57,4.37110728]
[1755564905412,9.85359164,184.81,184.64,3.13]
[1755564905610,9.85359164,184.81,184.74,4.37110728]
[1755564905611,3.83223402,184.81,184.74,4.37110728]
[1755564905811,3.83223402,184.81,184.72,3.13]
[1755564906006,2.89,184.79,184.68,3.13]
[1755564906211,2.67392481,184.78,184.68,3.13]
[1755564906516,2.89,184.78,184.75,0.03942103]
[1755564906813,2.92892562,184.75,184.61,12.91540728]
[1755564907012,2.92892562,184.75,184.61,7.50110728]
[1755564907013,2.67302095,184.74,184.61,7.50110728]
[1755564907213,140.85,184.73,184.64,9.78430728]
[1755564907413,137.94,184.75,184.65,3.13]
[1755564907814,2.89,184.74,184.65,3.13]
[1755564908706,2.89,184.74,184.6,10.29460715]
[1755564908907,2.89,184.72,184.6,3.13]
[1755564909109,2.89,184.7,184.55,3.13]
[1755564909303,2.89,184.68,184.55,3.13]
[1755564909607,137.9,184.67,184.55,3.13]
[1755564911120,137.9,184.67,184.57,3.13]
[1755564914024,137.9,184.67,184.57,8.5453]
[1755564915022,137.9,184.67,184.58,3.13]
[1755564916613,137.9,184.67,184.58,10.29460715]
[1755564917012,2.89,184.74,184.6,3.13]
[1755564917324,137.86,184.73,184.6,3.13]
[1755564917523,137.86,184.73,184.63,3.13]
[1755564918117,137.86,184.73,184.63,8.5434]
[1755564919417,137.86,184.73,184.64,5.4133]
[1755564920527,137.86,184.73,184.65,5.413]
[1755564920727,137.86,184.73,184.66,3.13]
[1755564921028,137.86,184.73,184.66,8.5427]
[1755564921321,137.86,184.73,184.66,3.13]
[1755564921721,137.86,184.73,184.62,10.29460715]
[1755564922123,137.86,184.73,184.63,5.4135]
[1755564922526,3.08,184.72,184.62,3.13]
[1755564923923,3.08,184.72,184.62,8.5437]
[1755564925427,3.08,184.72,184.63,5.4136]
[1755564925632,3.08,184.72,184.64,2.9]
[1755564926933,3.08,184.72,184.65,5.4129]
[1755564927526,137.86,184.73,184.66,5.4127]
[1755564928128,3.08,184.75,184.68,5.4121]
[1755564928337,367.14,184.79,184.68,2.9]
[1755564930235,367.14,184.79,184.68,8.312]
[1755564930437,367.14,184.79,184.68,2.9]
[1755564930730,367.14,184.79,184.71,5.4111]
[1755564930933,367.14,184.79,184.72,2.9]
[1755564931524,3.08,184.83,184.72,2.9]
[1755564931736,0.03537976,184.77,184.72,2.9]
[1755564931929,140.82,184.83,184.74,7.16460715]
[1755564932132,0.94194072,184.86,184.77,2.9]
[1755564932334,140.82,184.88,184.77,2.9]
[1755564932734,3.08,184.88,184.79,2.9]
[1755564933237,3.08,184.88,184.82,0.034201]
[1755564933533,137.74,184.9,184.82,2.934201]
[1755564937443,137.74,184.9,184.82,10.09880815]
[1755564938045,3.08,184.92,184.82,10.09880815]
[1755564938254,140.74,184.92,184.82,10.09880815]
[1755564938753,3.08,184.91,184.82,10.09880815]
[1755564939251,3.08,184.91,184.82,0.034201]
[1755564940745,3.08,184.91,184.82,5.442201]
[1755564940947,3.08,184.91,184.82,0.034201]
[1755564941245,3.08,184.91,184.84,5.4073]
[1755564942651,3.08,184.91,184.85,5.4072]
[1755564942946,3.08,184.91,184.82,10.09880815]
[1755564943147,137.66,184.92,184.83,2.9]
[1755564943346,137.66,184.92,184.85,0.04061536]
[1755564943547,137.66,184.92,184.86,2.9]
[1755564943953,137.66,184.92,184.87,5.4064]
[1755564944153,137.66,184.92,184.88,2.9]
[1755564944855,137.66,184.92,184.85,0.04061536]
[1755564944856,140.74,184.92,184.86,5.4069]
[1755564945055,140.74,184.92,184.85,0.04061536]
[1755564945552,140.74,184.92,184.85,5.44771536]
[1755564945956,140.74,184.92,184.85,0.04061536]
[1755564946156,3.08,184.91,184.85,0.04061536]
[1755564948651,137.58,184.93,184.85,0.04061536]
[1755564949151,4.02150749,184.95,184.85,0.04061536]
[1755564949152,0.94150749,184.95,184.85,0.04061536]
[1755564949352,3.08,184.96,184.85,0.04061536]
[1755564950557,3.08,184.96,184.88,5.4063]
[1755564951459,3.08,184.96,184.89,5.406]
[1755564951860,137.56,184.97,184.92,5.4051]
[1755564952151,137.56,184.97,184.92,8.3051]
[1755564952554,137.56,184.97,184.93,8.4548]
[1755564952753,137.56,184.97,184.87,3.05]
[1755564952955,137.56,184.97,184.92,5.4051]
[1755564953361,140.6,184.97,184.89,3.05]
[1755564953758,140.6,184.97,184.9,5.4057]
[1755564954060,140.6,184.97,184.89,3.05]
[1755564954256,137.56,184.97,184.93,5.4049]
[1755564954462,137.56,184.97,184.91,3.05]
[1755564954759,3.04,185.01,184.91,3.05]
[1755564955060,140.70128992,185.04,184.91,3.05]
[1755564955462,140.70128992,185.04,184.95,5.404]
[1755564955854,140.70128992,185.04,184.94,5.4046]
[1755564956063,3.20128992,185.04,184.91,3.05]
[1755564956458,3.20128992,185.04,184.94,5.4044]
[1755564956659,3.20128992,185.04,184.94,3.05]
[1755564957061,3.20128992,185.04,184.94,8.4544]
[1755564957457,3.20128992,185.04,184.94,3.05]
[1755564958164,3.20128992,185.04,184.94,8.4543]
[1755564959854,3.20128992,185.04,184.9,10.21460715]
[1755564960059,3.20128992,185.04,184.9,3.05]
[1755564960461,3.20128992,185.04,184.93,8.4547]
[1755564960864,3.20128992,185.04,184.93,3.05]
[1755564961769,3.20128992,185.04,184.93,8.4546]
[1755564962967,3.20128992,185.04,184.93,3.05]
[1755564963670,3.20128992,185.04,184.94,5.4044]
[1755564963867,3.20128992,185.04,184.93,3.05]
[1755564964269,3.20128992,185.04,184.91,12.56990715]
[1755564964464,3.20128992,185.04,184.91,7.16460715]
[1755564964961,3.20128992,185.04,184.92,5.4049]
[1755564965158,3.20128992,185.04,184.91,7.16460715]
[1755564965363,3.20128992,185.04,184.9,3.05]
[1755564966162,3.20128992,185.04,184.91,5.4051]
[1755564967064,140.62128992,185.04,184.92,3.05]
[1755564967263,3.04,185.03,184.92,3.05]
[1755564968369,3.04,185.03,184.92,7.40298125]
[1755564968972,3.04,185.03,184.89,4.35298125]
[1755564969175,2.92366706,185.01,184.88,5.97366706]
[1755564969368,5.96366706,185.0,184.88,5.97366706]
[1755564969675,3.04,184.96,184.85,2.92366706]
[1755564969875,3.04,184.95,184.85,2.92366706]
[1755564970172,3.04,184.95,184.82,116.83363616]
[1755564970173,3.04,184.95,184.83,2.92366706]
[1755564970364,3.04,184.95,184.8,3.05]
[1755564970562,2.61618498,184.94,184.8,3.05]
[1755564970768,5.65634993,184.93,184.8,3.05]
[1755564970972,3.04,184.93,184.8,3.05]
[1755564972367,3.04,184.93,184.83,5.4076]
[1755564972568,3.04,184.93,184.84,3.05]
[1755564973377,3.04,184.93,184.84,8.4573]
[1755564974079,3.04,184.93,184.84,3.05]
[1755564976583,3.04,184.93,184.84,8.4573]
[1755564977481,3.04,184.93,184.84,3.05]
[1755564978579,3.04,184.93,184.84,8.4573]
[1755564978775,3.04,184.93,184.84,3.05]
[1755564980178,3.04,184.93,184.85,5.4069]
[1755564980886,3.04,184.93,184.86,5.4067]
[1755564981784,137.4,184.96,184.88,8.4561]
[1755564983192,137.4,184.96,184.88,2.85]
[1755564983893,137.4,184.96,184.9,5.4054]
[1755564984188,137.4,184.96,184.88,2.85]
[1755564984686,137.4,184.96,184.91,5.4051]
[1755564984890,137.4,184.96,184.92,2.85]
[1755564985090,137.4,184.96,184.88,2.85]
[1755564985298,2.89,185.0,184.93,5.4046]
[1755564985695,2.89,185.0,184.92,2.85]
[1755564985992,2.89,185.0,184.92,8.2548]
[1755564986288,2.89,185.0,184.92,2.85]
[1755564986488,2.89,185.0,184.93,5.4045]
[1755564986787,2.89,185.0,184.92,2.85]
[1755564986985,363.3,185.02,184.95,5.4039]
[1755564987295,363.3,185.02,184.94,2.85]
[1755564987981,363.3,185.02,184.95,5.404]
[1755564988291,363.3,185.02,184.94,2.85]
[1755564988490,3.05128992,185.04,184.96,5.4038]
[1755564988694,140.39128992,185.04,184.96,8.2538]
[1755564989086,140.39128992,185.04,184.96,2.85]
[1755564989387,2.89,185.03,184.91,7.72617424]
[1755564989692,2.89,185.03,184.92,8.255]
[1755564991594,2.89,185.03,184.94,2.85]
[1755564992390,2.89,185.03,184.96,2.92101635]
[1755564994793,0.16128992,185.04,184.99,2.92101635]
[1755564994994,0.16128992,185.04,185.01,2.85]
[1755564996194,3.05128992,185.04,184.99,5.77101635]
[1755565001095,0.16128992,185.04,184.99,5.77101635]
[1755565001286,3.05128992,185.04,184.99,5.77101635]
[1755565002188,2.89,185.03,184.99,5.77101635]
[1755565004888,2.89,185.03,184.99,2.92101635]
[1755565005095,0.16128992,185.04,185.0,2.85]
[1755565005394,3.05128992,185.04,185.0,2.85]
[1755565006389,0.16128992,185.04,184.99,2.95565056]
[1755565006792,0.16128992,185.04,185.02,5.77101635]
[1755565007088,0.16128992,185.04,185.03,2.85]
[1755565007394,0.16128992,185.04,185.02,5.77101635]
[1755565009495,2.89,185.03,184.99,2.95565056]
[1755565009792,2.89,185.03,184.99,0.03463421]
[1755565010192,0.16128992,185.04,184.99,0.03463421]
[1755565010392,2.89,185.02,184.99,0.03463421]
[1755565010702,2.89,185.03,184.99,0.03463421]
[1755565010886,2.89,185.02,184.99,0.03463421]
[1755565012187,2.98,185.0,184.99,0.03463421]
[1755565013694,2.98,185.03,184.99,3.04463421]
[1755565014197,0.16128992,185.04,185.0,3.01]
[1755565014500,2.98,185.03,184.99,0.03463421]
[1755565014692,2.98,185.03,184.88,2.92101635]
[1755565014693,2.92101635,185.01,184.88,2.92101635]
[1755565014994,2.98,185.0,184.89,3.01]
[1755565016287,2.98,185.0,184.88,2.92101635]
[1755565016288,3.01556672,184.96,184.88,2.92101635]
[1755565016792,3.01556672,184.96,184.88,5.93101635]
[1755565018296,3.01556672,184.96,184.88,2.92101635]
[1755565018499,0.03556672,184.96,184.92,3.01]
[1755565018701,0.03556672,184.96,184.93,3.01]
[1755565019400,0.03556672,184.96,184.95,3.01]
[1755565019595,0.03556672,184.96,184.92,5.93101635]
[1755565019797,2.98,185.0,184.94,3.01]
[1755565020401,2.98,184.98,184.94,3.01]
[1755565020604,2.98,184.98,184.95,0.03897748]
[1755565021094,0.03660969,184.99,184.95,5.96999383]
[1755565021495,3.01660969,184.99,184.95,5.96999383]
[1755565021696,0.03660969,184.99,184.95,2.95999383]
[1755565021898,2.98,184.98,184.95,2.95999383]
[1755565022497,0.03660969,184.99,184.95,5.96999383]
[1755565023604,0.03660969,184.99,184.96,3.01]
[1755565023899,0.03660969,184.99,184.97,3.01]
[1755565024104,0.03660969,184.99,184.95,5.96999383]
[1755565025400,3.01660969,184.99,184.95,2.95999383]
[1755565027109,0.03660969,184.99,184.96,3.01]
[1755565028503,0.03660969,184.99,184.97,3.01]
[1755565028708,0.03660969,184.99,184.95,2.95999383]
[1755565029009,0.03660969,184.99,184.96,3.01]
[1755565030513,2.98,184.98,184.95,0.03897748]
[1755565031407,2.98,184.97,184.95,0.03897748]
[1755565034216,0.54,184.97,184.88,2.92101635]
[1755565034510,2.92101635,184.92,184.8,3.01]
[1755565034714,2.98,184.9,184.8,3.01]
[1755565035011,2.98,184.92,184.82,2.92101635]
[1755565035215,2.98,184.92,184.83,3.01]
[1755565035414,2.98,184.92,184.81,2.92101635]
[1755565035616,0.03541117,184.89,184.81,2.92101635]
[1755565036518,0.03541117,184.89,184.86,3.01]
[1755565036915,2.98,184.94,184.86,3.01]
[1755565037315,0.03911556,184.89,184.86,3.01]
[1755565037714,2.98,184.88,184.79,2.92101635]
[1755565038413,2.98,184.88,184.82,2.92101635]
[1755565039216,3.01589503,184.87,184.82,2.92101635]
[1755565039617,2.98,184.86,184.82,2.92101635]
[1755565040826,2.98,184.86,184.8,3.01]
[1755565041024,2.98,184.86,184.8,5.93101635]
[1755565043018,2.98,184.86,184.76,2.94]
[1755565043220,2.98,184.86,184.78,2.92101635]
[1755565043524,2.98,184.86,184.76,2.94]
[1755565043525,2.98,184.86,184.81,2.92101635]
[1755565043726,0.03621498,184.84,184.81,2.92101635]
[1755565044026,0.03621498,184.84,184.81,5.86101635]
[1755565044831,2.91621498,184.84,184.81,2.92101635]
[1755565046222,0.03621498,184.84,184.79,2.92101635]
[1755565046424,2.88,184.83,184.76,2.92101635]
[1755565047127,0.03869528,184.81,184.76,2.92101635]
[1755565047627,0.03869528,184.81,184.77,2.94]